bitfinex-derivatives/quotes_ETHF0:USTF0_20250220
["timestamp","ask_amount","ask_price","bid_price","bid_amount"]
[1740025130851,2.338,2747.6,2747.5,3.2078]
[1740025131255,3.06596,2747.6,2747.5,3.2078]
[1740025132156,2.338,2747.6,2747.5,3.2078]
[1740025133157,2.338,2747.6,2747.5,3.93578]
[1740025133955,2.338,2747.6,2747.5,3.2078]
[1740025134555,2.338,2747.6,2747.5,3.93579]
[1740025134756,0.72795,2747.7,2747.5,3.93579]
[1740025134957,0.72792,2747.8,2747.5,3.93579]
[1740025135157,2.338,2747.7,2747.6,1.1378]
[1740025135555,2.338,2747.7,2747.6,1.86576]
[1740025136561,2.338,2747.7,2747.6,1.1378]
[1740025137163,2.338,2747.7,2747.6,1.86576]
[1740025137664,2.338,2747.7,2747.6,1.1378]
[1740025137864,3.06593,2747.7,2747.6,1.1378]
[1740025138159,3.06593,2747.7,2747.6,0.5519]
[1740025138462,0.72796,2747.6,2747.5,3.2078]
[1740025138661,3.06594,2747.7,2747.5,3.93579]
[1740025138855,2.338,2747.7,2747.5,3.93579]
[1740025139058,3.06595,2747.7,2747.5,3.93579]
[1740025140664,3.06595,2747.7,2747.5,3.2078]
[1740025140867,3.06595,2747.7,2747.5,3.93579]
[1740025141168,3.06595,2747.7,2747.5,3.2078]
[1740025141868,2.338,2747.7,2747.5,3.2078]
[1740025142067,3.06594,2747.7,2747.5,3.93578]
[1740025142761,2.338,2747.7,2747.5,3.2078]
[1740025142961,2.338,2747.7,2747.6,0.72796]
[1740025143163,3.06593,2747.7,2747.5,3.93578]
[1740025144168,3.06593,2747.7,2747.5,3.2078]
[1740025144669,3.06593,2747.7,2747.5,3.93578]
[1740025144966,0.72796,2747.6,2747.5,3.2078]
[1740025145164,0.5464,2747.6,2747.5,3.2078]
[1740025145859,0.5464,2747.6,2747.5,3.93579]
[1740025146371,2.338,2747.7,2747.6,0.72796]
[1740025146570,2.338,2747.7,2747.6,1.29266]
[1740025146765,0.5647,2747.9,2747.6,1.29266]
[1740025146968,2.338,2747.7,2747.6,1.29266]
[1740025151374,3.06593,2747.7,2747.6,0.5647]
[1740025151581,3.60623,2747.7,2747.6,0.5647]
[1740025151877,3.60623,2747.7,2747.5,3.93578]
[1740025152174,3.60623,2747.7,2747.5,3.2078]
[1740025152474,3.60625,2747.7,2747.5,3.93579]
[1740025152677,2.8783,2747.7,2747.5,3.2078]
[1740025152971,0.72796,2747.6,2747.5,3.2078]
[1740025153370,0.72801,2747.4,2747.3,0.00545425]
[1740025153971,1.28631,2747.4,2747.3,0.00545425]
[1740025155273,0.5583,2747.4,2747.3,0.00545425]
[1740025155670,1.28631,2747.4,2747.3,0.00545425]
[1740025161482,0.5583,2747.4,2747.3,0.73349425]
[1740025161674,0.5583,2747.4,2747.3,0.00545425]
[1740025161874,0.5583,2747.4,2747.3,0.73349425]
[1740025162681,1.28631,2747.4,2747.3,0.00545425]
[1740025163277,0.5583,2747.4,2747.3,0.00545425]
[1740025163481,1.28631,2747.4,2747.3,0.00545425]
[1740025170585,0.5583,2747.4,2747.3,0.00545425]
[1740025170886,2.339,2747.4,2747.3,0.73349425]
[1740025171081,0.72797,2747.6,2747.3,1.85019425]
[1740025171290,2.339,2747.5,2747.3,1.12215425]
[1740025171484,2.339,2747.5,2747.3,1.85017425]
[1740025171685,2.339,2747.5,2747.4,0.72801]
[1740025172286,0.5493,2747.8,2747.3,1.69055425]
[1740025172485,3.2078,2748.2,2747.8,0.72791]
[1740025172680,0.5493,2748.1,2747.7,3.2078]
[1740025172889,0.5493,2748.1,2748.0,3.2078]
[1740025173181,0.5493,2748.1,2748.0,3.93566]
[1740025173382,0.5493,2748.1,2748.0,3.2078]
[1740025173583,0.5493,2748.1,2748.0,3.93566]
[1740025173784,0.5536,2748.3,2748.0,3.2078]
[1740025174087,2.8926,2748.3,2748.0,3.93564]
[1740025176191,0.5604,2748.5,2748.2,0.7278]
[1740025176385,2.338,2748.4,2748.2,0.7278]
[1740025176583,0.5604,2748.5,2748.2,0.7278]
[1740025176783,2.338,2748.4,2748.2,0.7278]
[1740025176979,3.06575,2748.4,2748.0,3.2078]
[1740025177186,2.338,2748.4,2748.0,3.2078]
[1740025177386,2.338,2748.4,2748.1,0.72782]
[1740025178093,2.338,2748.4,2748.1,0.72783]
[1740025178293,0.72772,2748.6,2748.2,0.72779]
[1740025178491,2.338,2748.5,2748.3,0.5397]
[1740025178887,3.06573,2748.5,2748.3,0.5397]
[1740025179793,2.338,2748.5,2748.3,0.5397]
[1740025180296,3.06573,2748.5,2748.3,0.5397]
[1740025181394,3.06573,2748.5,2748.2,0.7278]
[1740025181395,0.72776,2748.4,2748.0,3.93564]
[1740025181586,0.72776,2748.4,2748.1,0.72783]
[1740025181786,2.338,2748.5,2748.1,0.72783]
[1740025181997,3.06575,2748.5,2748.1,0.72783]
[1740025182393,3.06574,2748.5,2748.2,0.72779]
[1740025182897,3.06574,2748.5,2748.3,0.72777]
[1740025182898,2.338,2748.5,2748.3,0.72777]
[1740025183291,3.06574,2748.5,2748.0,3.752]
[1740025183493,1.11285425,2748.7,2748.0,3.752]
[1740025183797,0.72772,2748.5,2748.3,0.72777]
[1740025184595,2.338,2748.6,2748.3,0.72777]
[1740025184796,0.72772,2748.5,2748.3,0.72777]
[1740025185195,0.72772,2748.5,2748.3,3.93557]
[1740025187693,3.06572,2748.5,2748.3,3.93557]
[1740025189393,2.338,2748.6,2748.3,3.2078]
[1740025189599,2.338,2748.6,2748.5,0.72772]
[1740025190601,0.00545425,2748.7,2748.6,0.7277]
[1740025190795,0.00545425,2748.7,2748.6,3.9355]
[1740025194690,0.00545425,2748.7,2748.6,3.2078]
[1740025195099,0.00545425,2748.7,2748.6,3.9355]
[1740025197593,0.73312425,2748.7,2748.6,3.2078]
[1740025198597,0.73312425,2748.7,2748.6,3.9355]
[1740025198902,0.73312425,2748.7,2748.6,3.2078]
[1740025200207,0.72777,2748.4,2748.3,3.2078]
[1740025200407,3.06477,2748.4,2748.3,3.2078]
[1740025203408,2.337,2748.4,2748.3,3.2078]
[1740025204708,2.337,2748.4,2748.3,3.93558]
[1740025206012,2.337,2748.4,2748.3,3.2078]
[1740025206814,2.337,2748.4,2748.3,3.93558]
[1740025207909,2.8919,2748.6,2748.4,0.72775]
[1740025208105,2.8919,2748.6,2748.4,1.0687]
[1740025208308,2.8919,2748.6,2748.4,1.79644]
[1740025209015,3.6196,2748.6,2748.4,1.79644]
[1740025209716,2.8919,2748.6,2748.5,0.72772]
[1740025210809,2.337,2748.6,2748.5,0.72772]
[1740025211014,2.337,2748.6,2748.5,1.29132]
[1740025212117,0.00545425,2748.7,2748.6,0.7277]
[1740025212319,0.00545425,2748.7,2748.6,3.9355]
[1740025213219,0.5498,2749.2,2748.6,3.74871882]
[1740025213415,2.8868,2749.2,2749.0,3.93538]
[1740025214208,2.8868,2749.2,2749.0,3.2078]
[1740025214513,0.5498,2749.2,2749.1,0.72756]
[1740025215314,0.5498,2749.2,2749.0,4.51918]
[1740025215517,0.5498,2749.2,2749.0,3.7916]
[1740025215714,0.5498,2749.2,2749.1,0.72756]
[1740025215912,0.5498,2749.2,2749.0,3.7916]
[1740025216111,0.5498,2749.2,2749.0,44.5916]
[1740025216312,0.5498,2749.2,2749.0,3.2078]
[1740025216516,0.72756,2749.1,2749.0,3.2078]
[1740025217316,1.0829,2749.2,2749.0,3.2078]
[1740025217317,1.81045,2749.2,2749.0,3.2078]
[1740025217819,0.72756,2749.1,2749.0,3.2078]
[1740025220717,1.0829,2749.2,2748.8,0.00545425]
[1740025220921,0.72762,2748.9,2748.8,0.00545425]
[1740025221219,3.06462,2748.9,2748.8,0.00545425]
[1740025221725,2.337,2748.9,2748.8,0.00545425]
[1740025222218,0.72762,2748.9,2748.8,0.00545425]
[1740025222407,4.26652,2749.3,2749.0,0.72759]
[1740025222611,1.31385,2749.2,2749.0,3.2078]
[1740025223014,2.9233,2749.2,2749.0,3.2078]
[1740025223323,0.72756,2749.1,2749.0,3.2078]
[1740025224213,3.5108,2749.2,2749.0,3.2078]
[1740025224416,0.72756,2749.1,2749.0,3.2078]
[1740025224923,3.5108,2749.2,2749.0,3.2078]
[1740025225316,0.72756,2749.1,2749.0,3.2078]
[1740025227125,2.337,2749.1,2749.0,3.2078]
[1740025227623,3.06456,2749.1,2749.0,3.2078]
[1740025227919,0.579,2749.3,2749.0,3.2078]
[1740025228121,2.916,2749.3,2749.1,0.72756]
[1740025228814,2.916,2749.3,2749.2,0.72754]
[1740025229124,0.579,2749.3,2749.2,0.72754]
[1740025231924,0.00545425,2749.4,2749.2,0.72752]
[1740025232123,0.00545425,2749.4,2749.3,3.2078]
[1740025232715,0.00545425,2749.4,2749.3,3.93531]
[1740025237233,0.73293425,2749.4,2749.3,3.2078]
[1740025238438,0.00545425,2749.4,2749.3,3.2078]
[1740025238931,0.73293425,2749.4,2749.3,3.2078]
[1740025239234,0.72753,2749.3,2749.0,0.72758]
[1740025240031,0.72753,2749.3,2749.2,3.2078]
[1740025240433,0.00545425,2749.4,2748.9,4.4773]
[1740025240732,0.00545425,2749.4,2748.9,4.47731]
[1740025240733,0.72754,2749.2,2748.9,4.47731]
[1740025241027,0.5465,2749.1,2748.9,4.4773]
[1740025241338,0.5465,2749.1,2749.0,0.72759]
[1740025244027,0.5465,2749.1,2748.9,4.4773]
[1740025245230,0.5465,2749.1,2749.0,0.72759]
[1740025246235,0.5465,2749.1,2749.0,3.93539]
[1740025248637,0.5465,2749.1,2749.0,3.2078]
[1740025248835,1.27406,2749.1,2749.0,3.2078]
[1740025249033,1.1061,2749.1,2749.0,3.2078]
[1740025250436,1.1061,2749.1,2749.0,3.93539]
[1740025251643,1.1061,2749.1,2749.0,3.2078]
[1740025251836,1.83366,2749.1,2749.0,3.2078]
[1740025252131,1.1061,2749.1,2749.0,3.2078]
[1740025252930,1.1061,2749.1,2749.0,3.93539]
[1740025253636,2.336,2749.2,2749.1,0.72756]
[1740025260137,2.34145425,2749.4,2749.3,0.72751]
[1740025260336,2.34145425,2749.4,2749.3,3.2078]
[1740025260732,2.34145425,2749.4,2749.3,3.93531]
[1740025261938,0.00545425,2749.4,2749.3,3.93531]
[1740025262837,0.00545425,2749.4,2749.3,4.47629528]
[1740025263039,0.00545425,2749.4,2749.3,4.47626782]
[1740025263339,0.00545425,2749.4,2749.3,4.93251537]
[1740025263942,0.5318,2750.0,2749.8,0.72736]
[1740025264242,2.336,2749.9,2749.8,3.2078]
[1740025265545,0.5318,2750.0,2749.8,3.2078]
[1740025265845,2.8678,2750.0,2749.9,0.72735]
[1740025266037,2.8678,2750.0,2749.9,1.85125]
[1740025266240,0.00545425,2750.1,2749.9,1.1239]
[1740025266446,2.34145425,2750.1,2749.9,1.1239]
[1740025266746,0.00545425,2750.1,2750.0,0.72733]
[1740025267136,0.00545425,2750.1,2749.9,1.6906]
[1740025267343,0.00545425,2750.1,2750.0,0.72733]
[1740025268443,3.2078,2751.5,2750.6,0.72716]
[1740025268747,2.97010669,2751.4,2750.8,3.2078]
[1740025269042,1.1112,2751.3,2750.8,3.2078]
[1740025269244,1.1112,2751.3,2750.7,1.1514]
[1740025269245,0.5335,2751.3,2751.2,3.2078]
[1740025270146,0.00545425,2751.5,2751.2,3.2078]
[1740025270346,0.72696,2751.4,2751.2,3.2078]
[1740025270746,0.00545425,2751.5,2751.2,3.2078]
[1740025270941,0.72698,2751.3,2751.2,3.2078]
[1740025271662,0.00545425,2751.5,2751.0,0.00545425]
[1740025271861,0.727,2751.3,2751.1,0.72702]
[1740025272367,0.72697,2751.4,2751.2,3.2078]
[1740025272567,0.00545425,2751.5,2751.2,3.2078]
[1740025272765,0.72698,2751.3,2751.2,3.2078]
[1740025273466,0.72704,2751.1,2751.0,0.00545425]
[1740025274059,1.30394,2751.1,2751.0,0.00545425]
[1740025274453,1.30394,2751.1,2751.0,3.21325425]
[1740025274758,0.5769,2751.1,2751.0,3.21325425]
[1740025274961,1.30394,2751.1,2751.0,3.21325425]
[1740025275166,1.30394,2751.1,2751.0,0.00545425]
[1740025275363,4.51174,2751.1,2751.0,0.00545425]
[1740025275567,0.72727,2750.2,2750.1,3.2078]
[1740025275760,0.72726,2750.3,2750.1,3.93508]
[1740025275962,0.72725,2750.3,2750.2,0.72726]
[1740025276265,3.06222,2750.4,2750.1,3.2078]
[1740025276464,2.335,2750.4,2750.1,3.7441]
[1740025276668,0.72726,2750.3,2750.1,4.47139]
[1740025277162,0.72726,2750.3,2750.1,3.7441]
[1740025277363,0.72727,2750.2,2750.1,3.7441]
[1740025277560,0.72727,2750.2,2750.1,3.2078]
[1740025277960,0.7273,2750.1,2750.0,0.00545425]
[1740025279269,0.5733,2750.3,2750.0,0.00545425]
[1740025279471,2.337,2750.2,2750.1,3.2078]
[1740025280172,2.337,2750.2,2750.1,3.9351]
[1740025280573,1.0974,2750.6,2750.1,3.7481]
[1740025280574,0.5561,2750.6,2750.1,3.7481]
[1740025280770,0.5511,2750.8,2750.2,0.5386]
[1740025280975,2.341,2750.7,2750.5,0.72719]
[1740025281169,3.06815,2750.7,2750.6,40.8]
[1740025281372,2.341,2750.7,2750.6,40.8]
[1740025281777,3.06814,2750.7,2750.6,40.8]
[1740025281970,3.2078,2751.2,2750.4,3.2078]
[1740025282278,2.342,2751.1,2750.7,3.2078]
[1740025282474,0.7271,2750.9,2750.8,40.8]
[1740025282672,0.7271,2750.9,2750.7,3.93494]
[1740025282871,0.72711,2750.8,2750.7,3.2078]
[1740025283070,0.72711,2750.8,2750.7,3.93494]
[1740025283668,2.342,2751.1,2750.8,0.7271]
[1740025283875,0.72707,2751.0,2750.8,0.7271]
[1740025284175,3.06904,2751.1,2750.9,0.72708]
[1740025284377,3.06905,2751.1,2751.0,3.2078]
[1740025286773,0.72704,2751.1,2751.0,3.2078]
[1740025288580,0.72704,2751.1,2751.0,3.93486]
[1740025288879,0.5511,2751.2,2751.0,3.93486]
[1740025289079,0.72704,2751.1,2751.0,3.93486]
[1740025289280,0.5511,2751.2,2751.0,3.2078]
[1740025289672,0.72704,2751.1,2751.0,3.93484]
[1740025289874,0.5815,2751.3,2751.0,3.2078]
[1740025290080,0.72702,2751.2,2751.1,0.72702]
[1740025291180,0.72704,2751.2,2751.1,0.72702]
[1740025292386,1.3085,2751.3,2751.2,0.72701]
[1740025293584,0.00545425,2751.5,2751.3,0.72696]
[1740025293786,0.00545425,2751.5,2751.4,3.93476]
[1740025295086,0.73238425,2751.5,2751.4,3.93476]
[1740025295286,0.00545425,2751.5,2751.4,3.93476]
[1740025296084,0.5472,2752.1,2751.4,3.93476]
[1740025296286,0.5472,2752.1,2751.9,0.72681]
[1740025296486,0.5472,2752.1,2751.7,3.2078]
[1740025296687,1.81711,2751.9,2751.4,3.2078]
[1740025296885,0.72689,2751.7,2751.4,3.2078]
[1740025297088,0.5659,2751.8,2751.4,3.2078]
[1740025297404,0.72693,2751.5,2751.4,3.2078]
[1740025297583,0.57135425,2751.8,2751.4,3.93474]
[1740025297784,0.72693,2751.5,2751.4,3.2078]
[1740025298581,0.72696,2751.4,2751.3,0.55015425]
[1740025299186,0.72696,2751.4,2751.3,0.00545425]
[1740025302288,2.356,2751.5,2751.3,0.00545425]
[1740025302790,3.08293,2751.5,2751.4,3.93476]
[1740025302990,3.08293,2751.5,2751.4,3.2078]
[1740025303390,3.08293,2751.5,2751.4,4.49196]
[1740025303589,3.08293,2751.5,2751.4,5.63096]
[1740025303996,3.08293,2751.5,2751.4,4.904]
[1740025304289,3.08293,2751.5,2751.4,5.63096]
[1740025304590,3.08293,2751.5,2751.4,4.904]
[1740025304894,3.08293,2751.5,2751.4,5.63096]
[1740025305294,3.08293,2751.5,2751.4,4.904]
[1740025305587,3.08293,2751.5,2751.4,5.63096]
[1740025306194,3.08293,2751.5,2751.4,4.904]
[1740025306496,0.00545425,2751.8,2751.4,4.904]
[1740025306799,0.73231425,2751.8,2751.7,3.2078]
[1740025307388,0.72693,2751.5,2751.4,45.1285]
[1740025307696,1.81721,2751.7,2751.3,0.00545425]
[1740025307891,1.27006,2751.4,2751.3,0.00545425]
[1740025308596,1.85456,2751.4,2751.3,0.00545425]
[1740025310196,1.85456,2751.4,2751.3,0.73243425]
[1740025310494,1.1276,2751.4,2751.3,0.73243425]
[1740025310691,1.85456,2751.4,2751.3,0.73243425]
[1740025311091,1.1276,2751.4,2751.3,3.94023425]
[1740025311494,1.85456,2751.4,2751.3,3.21325425]
[1740025311893,1.85456,2751.4,2751.3,0.00545425]
[1740025312500,1.85456,2751.4,2751.3,0.73243425]
[1740025312693,1.85456,2751.4,2751.3,0.00545425]
[1740025313903,1.85456,2751.4,2751.3,0.73243425]
[1740025314398,1.85456,2751.4,2751.3,3.21325425]
[1740025315395,0.72696,2751.4,2751.3,3.21325425]
[1740025315595,1.81256,2751.4,2751.3,3.94023425]
[1740025315790,1.81256,2751.4,2751.3,3.21325425]
[1740025316796,1.81256,2751.4,2751.3,0.00545425]
[1740025318702,1.81256,2751.4,2751.3,0.73243425]
[1740025318996,1.81256,2751.4,2751.3,0.00545425]
[1740025319696,1.81256,2751.4,2751.3,0.73243425]
[1740025319903,1.81256,2751.4,2751.3,3.94023425]
[1740025320102,1.0856,2751.4,2751.3,3.94023425]
[1740025320503,0.00545425,2751.8,2751.3,3.21325425]
[1740025320696,0.00545425,2751.8,2751.7,0.72688]
[1740025321103,0.00545425,2751.8,2751.7,1.86688]
[1740025321503,0.00545425,2751.8,2751.7,1.14]
[1740025321699,0.00545425,2751.8,2751.7,1.86688]
[1740025322301,2.8917,2752.2,2752.1,0.72677]
[1740025322503,0.5337,2752.2,2752.1,3.93457]
[1740025323499,3.08572,2752.3,2752.1,3.93457]
[1740025323500,0.72672,2752.3,2752.1,3.93457]
[1740025323701,2.361,2753.3,2752.3,0.72672]
[1740025324003,0.5449,2753.1,2752.8,3.2078]
[1740025324201,3.2078,2754.3,2752.9,2.392]
[1740025324404,0.05795281,2754.2,2753.3,3.2078]
[1740025324597,1.18245281,2754.2,2753.3,3.2078]
[1740025324900,3.2078,2754.0,2753.3,3.2078]
[1740025325103,2.45095367,2753.9,2753.0,4.332]
[1740025325295,0.72639,2753.6,2753.3,3.2078]
[1740025325601,0.5449,2753.5,2753.3,3.2078]
[1740025326106,5.6118,2754.0,2753.3,3.2078]
[1740025326306,3.2078,2754.3,2753.4,2.405]
[1740025326507,3.2078,2754.6,2753.9,3.2078]
[1740025326703,3.2078,2754.6,2753.9,3.93409]
[1740025327005,0.72615,2754.5,2754.0,0.00545425]
[1740025327206,3.2078,2754.6,2754.0,0.00545425]
[1740025327408,0.72624,2754.1,2754.0,0.00545425]
[1740025328411,0.72641,2753.5,2753.3,3.2078]
[1740025328701,2.411,2753.6,2753.3,3.2078]
[1740025328896,2.9658,2754.0,2753.5,0.72639]
[1740025329102,2.9658,2754.0,2753.2,1.1258]
[1740025329103,3.69208,2754.0,2753.6,3.2078]
[1740025329301,2.9658,2754.0,2753.6,3.2078]
[1740025329507,0.72631,2753.9,2753.6,3.2078]
[1740025329706,2.9658,2754.0,2753.6,3.2078]
[1740025330004,0.72634,2753.8,2753.6,3.2078]
[1740025330202,0.72633,2753.8,2753.6,3.2078]
[1740025331305,0.72634,2753.8,2753.6,3.2078]
[1740025332608,0.72631,2753.9,2753.6,3.2078]
[1740025332804,2.411,2754.0,2753.6,3.2078]
[1740025333005,2.96,2754.6,2753.6,3.2078]
[1740025333006,4.65845252,2755.9,2753.9,3.2078]
[1740025333210,0.72572,2756.1,2755.1,3.2078]
[1740025333407,0.0579157,2756.0,2755.1,3.2078]
[1740025333602,3.2078,2756.2,2755.5,3.2078]
[1740025333810,3.2078,2756.5,2755.8,3.2078]
[1740025333999,3.2078,2756.8,2756.1,3.2078]
[1740025334200,3.2078,2757.1,2756.4,3.2078]
[1740025334410,0.5484,2757.2,2757.0,3.2078]
[1740025334608,3.2078,2757.1,2756.4,44.0078]
[1740025334799,0.72557,2756.7,2756.4,44.0078]
[1740025335206,3.2078,2757.1,2756.4,44.0078]
[1740025335407,3.0454,2757.2,2756.4,3.2078]
[1740025335612,0.5484,2757.2,2756.6,3.2078]
[1740025335909,0.72545,2757.1,2757.0,3.2078]
[1740025336111,0.72562,2756.5,2756.4,3.2078]
[1740025336309,2.498,2756.5,2756.1,3.2078]
[1740025336507,0.72569,2756.2,2756.1,3.2078]
[1740025336907,2.498,2756.5,2756.1,3.2078]
[1740025337511,0.72569,2756.2,2756.1,3.2078]
[1740025338110,2.498,2756.5,2756.1,3.2078]
[1740025338307,0.72567,2756.3,2756.1,3.2078]
[1740025338513,2.498,2756.5,2756.1,3.2078]
[1740025338710,0.72569,2756.2,2756.1,3.2078]
[1740025339911,2.492,2756.4,2756.1,3.2078]
[1740025340112,0.72569,2756.2,2756.1,3.2078]
[1740025340309,2.492,2756.4,2756.1,3.2078]
[1740025341015,3.2078,2758.4,2756.5,3.2078]
[1740025341313,3.7609,2758.4,2757.8,3.2078]
[1740025341817,0.5531,2758.4,2757.8,3.93305]
[1740025342109,3.2078,2759.3,2757.9,40.8]
[1740025342315,3.2078,2759.6,2759.0,3.2078]
[1740025342917,0.72479,2759.7,2759.4,3.2078]
[1740025343209,0.72483,2759.5,2759.1,3.2078]
[1740025343409,3.2078,2759.9,2759.0,0.00544316]
[1740025343713,3.2078,2759.5,2759.0,0.00544316]
[1740025343912,0.72493,2759.1,2759.0,0.00544316]
[1740025344107,3.93273,2759.1,2759.0,0.00544316]
[1740025344312,3.2078,2760.4,2759.0,11.86680316]
[1740025344615,3.2078,2760.4,2759.8,3.2078]
[1740025344810,0.72464,2760.2,2759.8,3.2078]
[1740025345018,2.668,2760.3,2759.5,3.2078]
[1740025345215,3.2078,2760.1,2759.2,3.2078]
[1740025345412,0.72478,2759.7,2759.2,3.2078]
[1740025345915,0.72481,2759.6,2759.2,3.2078]
[1740025346118,3.2078,2760.1,2759.2,3.2078]
[1740025346416,0.72475,2759.8,2759.5,3.2078]
[1740025347013,2.666,2760.2,2759.6,3.2078]
[1740025347213,0.9058,2759.7,2759.6,3.2078]
[1740025347720,0.9058,2759.7,2759.6,9.2078]
[1740025348015,0.9058,2759.7,2759.6,3.2078]
[1740025348613,4.1136,2759.7,2759.2,3.2078]
[1740025348813,0.72487,2759.3,2759.2,3.2078]
[1740025349021,0.72493,2759.1,2759.0,3.16e-06]
[1740025349411,3.39993,2759.1,2759.0,3.16e-06]
[1740025349915,5.8828,2759.1,2758.1,3.2078]
[1740025350122,3.2078,2758.7,2758.1,3.2078]
[1740025350317,0.72512,2758.4,2758.1,3.2078]
[1740025350515,0.2899,2759.1,2758.1,3.2078]
[1740025350715,0.2899,2759.1,2758.7,3.2078]
[1740025350918,0.2899,2759.1,2757.6,2.675]
[1740025350919,0.2899,2759.1,2758.3,3.2078]
[1740025351122,0.2899,2759.1,2758.6,0.00544316]
[1740025351322,3.4977,2759.1,2758.6,0.00544316]
[1740025351520,0.72503,2758.7,2758.6,0.00544316]
[1740025354627,3.2078,2758.8,2757.9,40.8]
[1740025354825,0.7252,2758.1,2757.9,44.0078]
[1740025355021,3.2078,2758.8,2757.9,44.0078]
[1740025355022,1.81261,2758.7,2757.9,44.0078]
[1740025355228,3.2078,2758.2,2757.2,3.2078]
[1740025355522,3.2193,2758.1,2757.2,3.2078]
[1740025355721,3.2078,2758.0,2757.3,44.0078]
[1740025355921,0.72535,2757.5,2757.4,0.00544316]
[1740025356526,3.93315,2757.5,2757.4,0.00544316]
[1740025358029,0.72551,2756.9,2756.8,40.8]
[1740025358230,3.21324316,2757.9,2756.8,40.8]
[1740025358429,0.72548,2757.0,2756.8,40.8]
[1740025358622,0.72551,2756.9,2756.8,40.8]
[1740025359624,0.72556,2756.7,2756.6,0.00544316]
[1740025360227,3.93336,2756.7,2756.6,0.00544316]
[1740025361130,3.93336,2756.7,2756.6,3.16e-06]
[1740025362133,6.60236,2756.7,2756.6,3.16e-06]
[1740025363035,3.93336,2756.7,2756.6,3.16e-06]
[1740025363237,5.8738,2756.7,2756.6,3.16e-06]
[1740025363632,6.59936,2756.7,2756.6,3.16e-06]
[1740025366739,12.59936,2756.7,2756.6,3.16e-06]
[1740025368434,13.50616,2756.7,2756.6,3.16e-06]
[1740025368835,13.5640656,2756.7,2756.6,3.16e-06]
[1740025369449,13.50616,2756.7,2756.6,3.16e-06]
[1740025370940,13.5640681,2756.7,2756.6,3.16e-06]
[1740025371341,13.50616,2756.7,2756.6,3.16e-06]
[1740025371936,13.5640656,2756.7,2756.6,3.16e-06]
[1740025372150,13.50616,2756.7,2756.6,3.16e-06]
[1740025373238,13.56406479,2756.7,2756.6,3.16e-06]
[1740025373741,13.56406359,2756.7,2756.6,3.16e-06]
[1740025373944,13.50616,2756.7,2756.6,3.16e-06]
[1740025374145,7.56406499,2756.7,2756.6,3.16e-06]
[1740025374340,7.50616,2756.7,2756.6,3.16e-06]
[1740025374541,13.56406383,2756.7,2756.6,3.16e-06]
[1740025374741,13.56406553,2756.7,2756.6,3.16e-06]
[1740025375447,13.48216,2756.7,2756.6,3.16e-06]
[1740025375745,13.54006348,2756.7,2756.6,3.16e-06]
[1740025376333,13.48216,2756.7,2756.6,3.16e-06]
[1740025376840,13.54006247,2756.7,2756.6,3.16e-06]
[1740025378951,13.54006412,2756.7,2756.6,3.16e-06]
[1740025379245,7.54006412,2756.7,2756.6,3.16e-06]
[1740025380143,4.89806412,2756.7,2756.6,3.16e-06]
[1740025380449,7.77936,2756.7,2756.6,3.16e-06]
[1740025381348,7.77636,2756.7,2756.6,3.16e-06]
[1740025382150,5.13036,2756.7,2756.6,3.16e-06]
[1740025382349,7.78436,2756.7,2756.6,3.16e-06]
[1740025382551,7.78436,2756.7,2756.6,0.98474337]
[1740025383048,7.78136,2756.7,2756.6,0.98474337]
[1740025384053,7.78136,2756.7,2756.6,0.37874939]
[1740025384350,0.72582,2755.7,2755.6,1.4866]
[1740025384558,0.72582,2755.7,2755.6,6.14549531]
[1740025384852,0.72582,2755.7,2755.6,4.17114026]
[1740025385557,0.72582,2755.7,2755.6,3.27815853]
[1740025385953,1.81988316,2755.9,2755.6,3.27815853]
[1740025386155,0.7258,2755.8,2755.7,0.55811358]
[1740025386553,0.7258,2755.8,2755.7,1.79155853]
[1740025387462,0.7258,2755.8,2755.7,2.69592373]
[1740025388047,0.00544316,2755.9,2755.7,2.69592373]
[1740025388257,0.00544316,2755.9,2755.8,1.46247878]
[1740025388650,0.73121316,2755.9,2755.8,1.46247878]
[1740025389161,0.73121316,2755.9,2755.8,2.69592373]
[1740025391561,0.73121316,2755.9,2755.6,0.5862]
[1740025391562,0.72582,2755.7,2755.6,0.5862]
[1740025392456,0.72582,2755.7,2755.6,2.04066532]
[1740025392855,0.72582,2755.7,2755.6,3.25483995]
[1740025393856,0.72582,2755.7,2755.6,3.23333793]
[1740025394248,0.72582,2755.7,2755.6,3.87758401]
[1740025394450,0.72582,2755.7,2755.6,2.44462071]
[1740025394862,0.72582,2755.7,2755.6,3.44660189]
[1740025395654,0.19913046,2755.7,2755.6,3.44660189]
[1740025395855,0.92495046,2755.7,2755.6,2.44490186]
[1740025396159,0.92495046,2755.7,2755.6,2.84777459]
[1740025396361,0.92495046,2755.7,2755.6,4.29867526]
[1740025396760,1.83215046,2755.7,2755.6,4.29867526]
[1740025397563,1.83215046,2755.7,2755.6,3.08450063]
[1740025397860,1.83215046,2755.7,2755.6,3.06978987]
[1740025400661,1.83215046,2755.7,2755.6,2.93978819]
[1740025400862,1.83215046,2755.7,2755.6,2.30428714]
[1740025401162,1.83215046,2755.7,2755.6,2.29861163]
[1740025401360,1.83215046,2755.7,2755.6,1.90709899]
[1740025401763,1.83215046,2755.7,2755.6,0.13232704]
[1740025401962,0.72587,2755.5,2755.4,0.00544316]
[1740025402258,6.56067,2755.5,2755.4,0.00544316]
[1740025403164,5.8318,2755.5,2755.4,0.39815809]
[1740025403462,3.93367,2755.5,2755.4,1.78205502]
[1740025403664,6.55567,2755.5,2755.4,1.15405098]
[1740025403863,5.8298,2755.5,2755.4,0.39815809]
[1740025404165,6.55567,2755.5,2755.4,1.026201]
[1740025404564,3.93367,2755.5,2755.4,1.026201]